[Event "Allsvenskan Div I 3 2023/2024: SS Manhem II - Team Pelaro Alingsas SS"]
[Site "Goteborgs schackcentrum, Vegatan 20, Gothenburg, Sweden"]
[Date "2023.10.22"]
[Round "1.1"]
[White "Rasti, Arvin"]
[Black "Svensson, Lars"]
[Result "1-0"]
[TimeControl "90 minutes for 40 moves + 30 minutes for the rest of the game + 30 seconds per move from move one."]
[WhiteTitle "FM"]
[WhiteFideId "1741160"]
[BlackFideId "1734466"]
[WhiteElo "2262"]
[BlackElo "2062"]

1. Nf3 {[%clk 01:30:55]} {[%emt 00:00:04]} Nf6 {[%clk 01:30:42]} {[%emt
00:00:18]} 2. g3 {[%clk 01:31:03]} {[%emt 00:00:23]} d5 {[%clk 01:30:36]}
{[%emt 00:00:36]} 3. Bg2 {[%clk 01:31:27]} {[%emt 00:00:06]} e6 {[%clk
01:30:54]} {[%emt 00:00:11]} 4. O-O {[%clk 01:31:33]} {[%emt 00:00:24]} Be7
{[%clk 01:31:16]} {[%emt 00:00:09]} 5. c4 {[%clk 01:28:31]} {[%emt 00:03:32]}
O-O {[%clk 01:31:13]} {[%emt 00:00:33]} 6. d4 {[%clk 01:28:09]} {[%emt
00:00:50]} dxc4 {[%clk 01:30:45]} {[%emt 00:01:00]} 7. Qc2 {[%clk 01:28:06]}
{[%emt 00:00:32]} a6 {[%clk 01:30:52]} {[%emt 00:00:23]} 8. Qxc4 {[%clk
01:27:33]} {[%emt 00:01:03]} b5 {[%clk 01:31:00]} {[%emt 00:00:22]} 9. Qc2
{[%clk 01:27:58]} {[%emt 00:00:05]} Bb7 {[%clk 01:31:19]} {[%emt 00:00:12]} 10.
Bg5 {[%clk 01:28:22]} {[%emt 00:00:05]} Nbd7 {[%clk 01:29:35]} {[%emt
00:02:15]} 11. Nbd2 {[%clk 01:28:01]} {[%emt 00:00:50]} Rc8 {[%clk 01:14:32]}
{[%emt 00:15:33]} 12. Bxf6 {[%clk 01:15:34]} {[%emt 00:12:58]} Nxf6 {[%clk
01:14:32]} {[%emt 00:00:29]} 13. Nb3 {[%clk 01:15:55]} {[%emt 00:00:09]} Be4
{[%clk 01:11:08]} {[%emt 00:03:54]} 14. Qc1 {[%clk 01:12:58]} {[%emt 00:03:26]}
Bd6 {[%clk 01:03:19]} {[%emt 00:08:20]} 15. Nc5 {[%clk 01:07:31]} {[%emt
00:05:57]} Bxc5 {[%clk 01:03:03]} {[%emt 00:00:47]} 16. Qxc5 {[%clk 01:07:56]}
{[%emt 00:00:05]} Qd5 {[%clk 01:00:31]} {[%emt 00:03:01]} 17. Rfc1 {[%clk
00:58:27]} {[%emt 00:09:58]} Rfd8 {[%clk 00:55:09]} {[%emt 00:05:53]} 18. a4
{[%clk 00:54:31]} {[%emt 00:04:26]} c6 {[%clk 00:46:43]} {[%emt 00:08:56]} 19.
Qxd5 {[%clk 00:52:35]} {[%emt 00:02:26]} cxd5 {[%clk 00:18:19]} {[%emt
00:28:54]} 20. axb5 {[%clk 00:47:14]} {[%emt 00:05:52]} axb5 {[%clk 00:18:47]}
{[%emt 00:00:01]} 21. Ne5 {[%clk 00:46:55]} {[%emt 00:00:49]} Rxc1+ {[%clk
00:16:18]} {[%emt 00:02:58]} 22. Rxc1 {[%clk 00:47:22]} {[%emt 00:00:04]} Bxg2
{[%clk 00:16:37]} {[%emt 00:00:12]} 23. Kxg2 {[%clk 00:47:41]} {[%emt
00:00:11]} Ne8 {[%clk 00:16:53]} {[%emt 00:00:14]} 24. Rc6 {[%clk 00:43:26]}
{[%emt 00:04:44]} f6 {[%clk 00:14:22]} {[%emt 00:03:01]} 25. Nd3 {[%clk
00:43:19]} {[%emt 00:00:38]} Kf7 {[%clk 00:12:32]} {[%emt 00:02:19]} 26. Kf1
{[%clk 00:42:37]} {[%emt 00:01:11]} Ke7 {[%clk 00:10:37]} {[%emt 00:02:26]} 27.
Nc5 {[%clk 00:41:55]} {[%emt 00:01:12]} Rd6 {[%clk 00:07:48]} {[%emt 00:03:19]}
28. Rc8 {[%clk 00:42:20]} {[%emt 00:00:05]} Rb6 {[%clk 00:07:11]} {[%emt
00:01:07]} 29. b4 {[%clk 00:41:45]} {[%emt 00:01:05]} e5 {[%clk 00:06:26]}
{[%emt 00:01:16]} 30. e3 {[%clk 00:42:06]} {[%emt 00:00:09]} e4 {[%clk
00:05:17]} {[%emt 00:01:39]} 31. g4 {[%clk 00:41:39]} {[%emt 00:00:57]} g6
{[%clk 00:04:47]} {[%emt 00:01:00]} 32. Ra8 {[%clk 00:41:11]} {[%emt 00:00:58]}
h5 {[%clk 00:01:21]} {[%emt 00:03:56]} 33. gxh5 {[%clk 00:38:46]} {[%emt
00:02:55]} gxh5 {[%clk 00:01:49]} {[%emt 00:00:02]} 34. Ra7+ {[%clk 00:39:04]}
{[%emt 00:00:12]} Kd8 {[%clk 00:01:46]} {[%emt 00:00:33]} 35. Rd7+ {[%clk
00:39:04]} {[%emt 00:00:30]} Kc8 {[%clk 00:02:12]} {[%emt 00:00:04]} 36. Rxd5
{[%clk 00:39:26]} {[%emt 00:00:08]} Nd6 {[%clk 00:01:56]} {[%emt 00:00:46]} 37.
Rxh5 {[%clk 00:39:34]} {[%emt 00:00:21]} Rc6 {[%clk 00:00:43]} {[%emt
00:01:43]} 38. d5 {[%clk 00:39:13]} {[%emt 00:00:51]} 1-0

[Event "Allsvenskan Div I 3 2023/2024: SS Manhem II - Team Pelaro Alingsas SS"]
[Site "Goteborgs schackcentrum, Vegatan 20, Gothenburg, Sweden"]
[Date "2023.10.22"]
[Round "1.2"]
[White "Moller, Jan"]
[Black "Wengholm, Anders"]
[Result "0-1"]
[TimeControl "90 minutes for 40 moves + 30 minutes for the rest of the game + 30 seconds per move from move one."]
[WhiteFideId "1723766"]
[BlackFideId "1704818"]
[WhiteElo "2088"]
[BlackElo "2142"]

1. d4 {[%clk 01:30:23]} {[%emt 00:00:38]} d5 {[%clk 01:29:49]} {[%emt
00:01:11]} 2. Nf3 {[%clk 01:30:41]} {[%emt 00:00:11]} e6 {[%clk 01:30:10]}
{[%emt 00:00:09]} 3. c4 {[%clk 01:31:06]} {[%emt 00:00:05]} Nf6 {[%clk
01:30:14]} {[%emt 00:00:27]} 4. Nc3 {[%clk 01:31:28]} {[%emt 00:00:08]} Be7
{[%clk 01:30:04]} {[%emt 00:00:40]} 5. Bg5 {[%clk 01:29:56]} {[%emt 00:02:02]}
O-O {[%clk 01:30:15]} {[%emt 00:00:19]} 6. e3 {[%clk 01:30:21]} {[%emt
00:00:04]} Nbd7 {[%clk 01:29:48]} {[%emt 00:00:57]} 7. cxd5 {[%clk 01:29:28]}
{[%emt 00:01:24]} exd5 {[%clk 01:28:43]} {[%emt 00:01:35]} 8. Bd3 {[%clk
01:28:37]} {[%emt 00:01:20]} c6 {[%clk 01:24:31]} {[%emt 00:04:43]} 9. Qc2
{[%clk 01:28:17]} {[%emt 00:00:50]} Re8 {[%clk 01:22:56]} {[%emt 00:02:06]} 10.
O-O {[%clk 01:26:27]} {[%emt 00:02:19]} h6 {[%clk 01:08:49]} {[%emt 00:14:37]}
11. Bh4 {[%clk 01:22:58]} {[%emt 00:03:58]} Ne4 {[%clk 01:08:13]} {[%emt
00:01:06]} 12. Bxe7 {[%emt 00:02:56]} Qxe7 {[%clk 01:08:34]} {[%emt 00:00:06]}
13. Rab1 {[%clk 01:20:57]} {[%emt 00:00:08]} Ng5 {[%clk 00:59:48]} {[%emt
00:09:17]} 14. Be2 {[%clk 01:14:01]} {[%emt 00:07:26]} Nxf3+ {[%clk 00:59:15]}
{[%emt 00:01:03]} 15. Bxf3 {[%clk 01:14:29]} {[%emt 00:00:02]} Nb6 {[%clk
00:55:20]} {[%emt 00:04:25]} 16. Rfe1 {[%clk 00:56:01]} {[%emt 00:18:57]} Qh4
{[%clk 00:47:13]} {[%emt 00:08:38]} 17. Rbc1 {[%clk 00:39:09]} {[%emt
00:17:18]} Bg4 {[%clk 00:45:25]} {[%emt 00:02:21]} 18. Qe2 {[%clk 00:36:56]}
{[%emt 00:02:43]} Bxf3 {[%clk 00:45:12]} {[%emt 00:00:44]} 19. Qxf3 {[%clk
00:37:25]} Rad8 {[%clk 00:44:54]} {[%emt 00:00:48]} 20. b4 {[%clk 00:36:38]}
{[%emt 00:01:16]} a6 {[%clk 00:40:28]} {[%emt 00:04:57]} 21. a4 {[%clk
00:33:49]} {[%emt 00:03:20]} Qe7 {[%clk 00:30:50]} {[%emt 00:10:07]} 22. b5
{[%clk 00:32:18]} {[%emt 00:02:01]} cxb5 {[%clk 00:31:05]} {[%emt 00:00:15]} 23.
axb5 {[%clk 00:32:44]} {[%emt 00:00:05]} a5 {[%clk 00:31:24]} {[%emt 00:00:11]}
24. Qe2 {[%clk 00:29:06]} {[%emt 00:04:07]} Qb4 {[%clk 00:23:54]} {[%emt
00:08:01]} 25. Na2 {[%clk 00:26:34]} {[%emt 00:03:02]} Qd6 {[%clk 00:24:03]}
{[%emt 00:00:20]} 26. Nc3 {[%clk 00:26:08]} {[%emt 00:00:56]} Rc8 {[%clk
00:22:21]} {[%emt 00:02:13]} 27. Qa2 {[%clk 00:26:36]} {[%emt 00:00:02]} a4
{[%clk 00:21:57]} {[%emt 00:00:53]} 28. Rc2 {[%clk 00:24:01]} {[%emt 00:03:03]}
Rc4 {[%clk 00:20:23]} {[%emt 00:02:06]} 29. Rec1 {[%clk 00:23:13]} {[%emt
00:01:19]} Rec8 {[%clk 00:20:05]} {[%emt 00:00:47]} 30. g3 {[%clk 00:22:51]}
{[%emt 00:00:53]} h5 {[%clk 00:05:43]} {[%emt 00:14:52]} 31. h4 {[%clk
00:23:05]} {[%emt 00:00:16]} g6 {[%clk 00:05:40]} {[%emt 00:00:33]} 32. Kg2
{[%clk 00:22:45]} {[%emt 00:00:50]} Kg7 {[%clk 00:05:57]} {[%emt 00:00:12]} 33.
Qb2 {[%clk 00:16:29]} {[%emt 00:06:46]} Qb4 {[%clk 00:05:23]} {[%emt 00:01:05]}
34. Qa1 {[%clk 00:16:29]} {[%emt 00:00:27]} a3 {[%clk 00:02:04]} {[%emt
00:03:52]} 35. Rb1 {[%clk 00:15:17]} {[%emt 00:01:40]} Qd6 {[%clk 00:02:00]}
{[%emt 00:00:35]} 36. Rbc1 {[%clk 00:13:19]} {[%emt 00:02:28]} Na4 {[%clk
00:01:44]} {[%emt 00:00:46]} 37. Ne4 {[%clk 00:12:37]} {[%emt 00:01:13]} Qb4
{[%clk 00:01:23]} {[%emt 00:00:51]} 38. Nc5 {[%clk 00:08:40]} {[%emt 00:04:26]}
Nb2 {[%clk 00:00:51]} {[%emt 00:01:02]} 39. b6 {[%clk 00:06:48]} {[%emt
00:02:23]} Ra8 {[%clk 00:01:01]} {[%emt 00:00:19]} 40. Rxc4 {[%clk 00:05:41]}
{[%emt 00:01:38]} Nxc4 {[%clk 00:01:26]} {[%emt 00:00:06]} 41. e4 {[%clk
00:05:38]} {[%emt 00:00:32]} Qb2 {[%clk 00:28:14]} {[%emt 00:03:41]} 42. exd5
{[%clk 00:35:47]} {[%emt 00:00:22]} Ne3+ {[%clk 00:27:03]} {[%emt 00:01:41]} 43.
Kg1 {[%clk 00:36:09]} {[%emt 00:00:08]} Nxd5 {[%clk 00:25:11]} {[%emt
00:02:21]} 44. Nxb7 {[%clk 00:36:24]} {[%emt 00:00:15]} Nxb6 {[%clk 00:19:03]}
{[%emt 00:06:38]} 45. Nc5 {[%clk 00:36:44]} {[%emt 00:00:09]} Nc4 {[%clk
00:14:07]} {[%emt 00:05:27]} 46. Nd3 {[%clk 00:36:33]} {[%emt 00:00:41]} Qxa1
{[%clk 00:13:46]} {[%emt 00:00:52]} 47. Rxa1 {[%clk 00:37:02]} {[%emt
00:00:01]} Rd8 {[%clk 00:13:33]} {[%emt 00:00:42]} 48. Ne5 {[%clk 00:36:59]}
{[%emt 00:00:33]} Nxe5 {[%clk 00:12:33]} {[%emt 00:01:30]} 49. dxe5 {[%clk
00:37:28]} Rd3 {[%clk 00:12:38]} {[%emt 00:00:25]} 50. Kf1 {[%clk 00:35:28]}
{[%emt 00:02:31]} Kf8 {[%clk 00:12:43]} {[%emt 00:00:25]} 51. Ke2 {[%clk
00:35:20]} {[%emt 00:00:38]} Rb3 {[%clk 00:12:54]} {[%emt 00:00:19]} 52. Kd2
{[%clk 00:32:38]} {[%emt 00:03:12]} Ke7 {[%clk 00:12:23]} {[%emt 00:01:01]} 53.
Rg1 {[%clk 00:28:42]} {[%emt 00:04:25]} Ke6 {[%clk 00:07:02]} {[%emt 00:05:52]}
54. Rc1 {[%clk 00:23:02]} {[%emt 00:06:09]} Kxe5 {[%clk 00:04:54]} {[%emt
00:02:38]} 55. Rc7 {[%clk 00:23:29]} {[%emt 00:00:04]} a2 {[%clk 00:02:16]}
{[%emt 00:03:08]} 56. Ra7 {[%clk 00:23:45]} {[%emt 00:00:13]} Rb2+ {[%clk
00:02:42]} {[%emt 00:00:04]} 57. Ke3 {[%clk 00:24:09]} {[%emt 00:00:04]} Kd5
{[%clk 00:03:10]} {[%emt 00:00:05]} 58. f3 {[%clk 00:22:25]} {[%emt 00:02:14]}
Kc4 {[%clk 00:03:18]} {[%emt 00:00:21]} 59. g4 {[%clk 00:21:51]} {[%emt
00:01:04]} Kc3 {[%emt 00:02:05]} 0-1

[Event "Allsvenskan Div I 3 2023/2024: SS Manhem II - Team Pelaro Alingsas SS"]
[Site "Goteborgs schackcentrum, Vegatan 20, Gothenburg, Sweden"]
[Date "2023.10.22"]
[Round "1.3"]
[White "Bjorklund, Thomas"]
[Black "Bengtsson, Jessica"]
[Result "1/2-1/2"]
[TimeControl "90 minutes for 40 moves + 30 minutes for the rest of the game + 30 seconds per move from move one."]
[BlackTitle "WFM"]
[WhiteFideId "1724576"]
[BlackFideId "1711083"]
[WhiteElo "2129"]
[BlackElo "2046"]

1. e4 {[%clk 01:30:56]} {[%emt 00:00:03]} c5 {[%clk 01:30:44]} {[%emt
00:00:17]} 2. c3 {[%clk 01:31:19]} {[%emt 00:00:07]} Nf6 {[%clk 01:31:07]}
{[%emt 00:00:06]} 3. e5 {[%clk 01:30:33]} {[%emt 00:01:17]} Nd5 {[%clk
01:31:31]} {[%emt 00:00:06]} 4. d4 {[%clk 01:30:45]} {[%emt 00:00:19]} cxd4
{[%clk 01:31:55]} {[%emt 00:00:06]} 5. cxd4 {[%clk 01:31:10]} {[%emt 00:00:04]}
e6 {[%clk 01:32:01]} {[%emt 00:00:24]} 6. Nf3 {[%clk 01:30:50]} {[%emt
00:00:51]} d6 {[%clk 01:32:13]} {[%emt 00:00:16]} 7. Be2 {[%clk 01:30:47]}
{[%emt 00:00:33]} Nc6 {[%clk 01:29:51]} {[%emt 00:02:52]} 8. O-O {[%clk
01:29:40]} {[%emt 00:01:38]} Be7 {[%clk 01:29:57]} {[%emt 00:00:24]} 9. b3
{[%clk 01:28:07]} {[%emt 00:02:03]} O-O {[%clk 01:27:17]} {[%emt 00:03:10]} 10.
Bb2 {[%clk 01:28:04]} {[%emt 00:00:34]} Nf4 {[%clk 01:15:52]} {[%emt 00:11:55]}
11. Bb5 {[%clk 01:24:41]} {[%emt 00:03:53]} Qb6 {[%clk 01:09:27]} {[%emt
00:06:54]} 12. Bxc6 {[%clk 01:04:28]} {[%emt 00:20:44]} Qxc6 {[%clk 01:08:20]}
{[%emt 00:01:35]} 13. Nbd2 {[%clk 01:04:34]} {[%emt 00:00:24]} dxe5 {[%clk
00:58:23]} {[%emt 00:10:28]} 14. dxe5 {[%clk 01:03:22]} {[%emt 00:01:43]} b6
{[%clk 00:51:22]} {[%emt 00:07:31]} 15. Rc1 {[%clk 01:00:51]} {[%emt 00:03:00]}
Qd5 {[%clk 00:51:09]} {[%emt 00:00:42]} 16. Rc4 {[%clk 00:58:18]} {[%emt
00:03:04]} Nd3 {[%clk 00:47:23]} {[%emt 00:04:16]} 17. Ba1 {[%clk 00:56:13]}
{[%emt 00:02:36]} Ba6 {[%clk 00:42:15]} {[%emt 00:05:37]} 18. Rd4 {[%clk
00:55:12]} {[%emt 00:01:31]} Qc6 {[%clk 00:40:19]} {[%emt 00:02:26]} 19. Nc4
{[%clk 00:53:02]} {[%emt 00:02:40]} Nb4 {[%clk 00:39:31]} {[%emt 00:01:18]} 20.
Qd2 {[%clk 00:50:33]} {[%emt 00:02:59]} Rfd8 {[%clk 00:37:08]} {[%emt
00:02:53]} 21. Rd1 {[%clk 00:47:58]} {[%emt 00:03:06]} Rxd4 {[%clk 00:35:28]}
{[%emt 00:02:09]} 22. Nxd4 {[%clk 00:47:55]} {[%emt 00:00:34]} Qc5 {[%clk
00:32:16]} {[%emt 00:03:41]} 23. Rc1 {[%clk 00:42:39]} {[%emt 00:05:46]} Rc8
{[%clk 00:23:52]} {[%emt 00:08:54]} 24. Bb2 {[%clk 00:40:33]} {[%emt 00:02:37]}
Qd5 {[%clk 00:20:13]} {[%emt 00:04:08]} 25. a3 {[%clk 00:33:20]} {[%emt
00:07:43]} Nc6 {[%clk 00:20:03]} {[%emt 00:00:39]} 26. Nxc6 {[%clk 00:32:20]}
{[%emt 00:01:32]} Rxc6 {[%clk 00:19:43]} {[%emt 00:00:50]} 27. Qxd5 {[%clk
00:32:32]} {[%emt 00:00:18]} exd5 {[%clk 00:20:07]} {[%emt 00:00:06]} 28. Ne3
{[%clk 00:32:28]} {[%emt 00:00:33]} Rxc1+ {[%clk 00:19:37]} {[%emt 00:01:00]}
29. Bxc1 {[%clk 00:32:21]} {[%emt 00:00:37]} Bb7 {[%clk 00:19:14]} {[%emt
00:00:53]} 30. Kf1 {[%clk 00:32:11]} {[%emt 00:00:39]} Bg5 {[%clk 00:18:48]}
{[%emt 00:00:56]} 31. Bd2 {[%clk 00:31:42]} {[%emt 00:01:01]} Bf4 {[%clk
00:15:48]} {[%emt 00:03:29]} 32. Bc3 {[%clk 00:31:29]} {[%emt 00:00:43]} Bxe3
{[%clk 00:11:25]} {[%emt 00:04:54]} 33. fxe3 {[%clk 00:31:43]} {[%emt
00:00:15]} 1/2-1/2

[Event "Allsvenskan Div I 3 2023/2024: SS Manhem II - Team Pelaro Alingsas SS"]
[Site "Goteborgs schackcentrum, Vegatan 20, Gothenburg, Sweden"]
[Date "2023.10.22"]
[Round "1.4"]
[White "Lisander, Stefan"]
[Black "Karle, Max"]
[Result "1/2-1/2"]
[TimeControl "90 minutes for 40 moves + 30 minutes for the rest of the game + 30 seconds per move from move one."]
[WhiteFideId "1711733"]
[BlackFideId "1713124"]
[WhiteElo "2029"]
[BlackElo "2042"]

1. e4 {[%clk 01:30:52]} {[%emt 00:00:07]} d5 {[%clk 01:30:39]} {[%emt
00:00:22]} 2. exd5 {[%clk 01:31:08]} {[%emt 00:00:14]} Qxd5 {[%clk 01:31:00]}
{[%emt 00:00:08]} 3. Nc3 {[%clk 01:31:15]} {[%emt 00:00:24]} Qd6 {[%clk
01:31:12]} {[%emt 00:00:17]} 4. Nf3 {[%clk 01:30:30]} {[%emt 00:01:16]} Nf6
{[%clk 01:31:30]} {[%emt 00:00:12]} 5. Be2 {[%clk 01:29:09]} {[%emt 00:01:50]}
a6 {[%clk 01:29:32]} {[%emt 00:02:29]} 6. O-O {[%clk 01:27:50]} {[%emt
00:01:49]} e6 {[%clk 01:28:34]} {[%emt 00:01:27]} 7. d4 {[%clk 01:25:42]}
{[%emt 00:02:38]} Be7 {[%clk 01:26:29]} {[%emt 00:02:36]} 8. Bg5 {[%clk
01:23:10]} {[%emt 00:03:02]} O-O {[%clk 01:26:17]} {[%emt 00:00:42]} 9. Qd2
{[%clk 01:22:30]} {[%emt 00:01:09]} Nbd7 {[%clk 01:17:41]} {[%emt 00:09:07]} 10.
Rad1 {[%clk 01:19:37]} {[%emt 00:03:22]} b5 {[%clk 01:13:11]} {[%emt 00:05:01]}
11. Bf4 {[%clk 01:10:47]} {[%emt 00:09:20]} Qb6 {[%clk 01:13:05]} {[%emt
00:00:36]} 12. d5 {[%clk 01:11:03]} {[%emt 00:00:13]} b4 {[%clk 01:03:50]}
{[%emt 00:09:45]} 13. Na4 {[%clk 01:10:44]} {[%emt 00:00:49]} Qa5 {[%clk
01:03:42]} {[%emt 00:00:38]} 14. dxe6 {[%clk 01:11:03]} {[%emt 00:00:11]} Qxa4
{[%clk 01:03:23]} {[%emt 00:00:49]} 15. exd7 {[%clk 01:10:02]} {[%emt
00:01:32]} Bxd7 {[%clk 01:02:44]} {[%emt 00:01:08]} 16. b3 {[%clk 01:03:22]}
{[%emt 00:07:11]} Qa5 {[%clk 00:58:29]} {[%emt 00:04:45]} 17. Ne5 {[%clk
01:02:16]} {[%emt 00:01:36]} Rad8 {[%clk 00:55:55]} {[%emt 00:03:04]} 18. Nc4
{[%clk 00:58:41]} {[%emt 00:04:05]} Qc5 {[%clk 00:54:46]} {[%emt 00:01:37]} 19.
Qe3 {[%clk 00:51:54]} {[%emt 00:07:19]} Rfe8 {[%clk 00:43:19]} {[%emt
00:11:56]} 20. Rfe1 {[%clk 00:48:48]} {[%emt 00:03:36]} Qxe3 {[%clk 00:34:54]}
{[%emt 00:08:56]} 21. Nxe3 {[%clk 00:48:03]} {[%emt 00:01:14]} Bc5 {[%clk
00:29:21]} {[%emt 00:06:03]} 22. Bxc7 {[%clk 00:42:56]} {[%emt 00:05:38]} Rc8
{[%clk 00:29:32]} {[%emt 00:00:19]} 23. Bf4 {[%clk 00:43:07]} {[%emt 00:00:18]}
Bb5 {[%clk 00:24:53]} {[%emt 00:05:09]} 24. Bd3 {[%clk 00:34:27]} {[%emt
00:09:10]} h6 {[%clk 00:19:52]} {[%emt 00:05:31]} 25. Nc4 {[%clk 00:33:49]}
{[%emt 00:01:07]} Kf8 {[%clk 00:13:03]} {[%emt 00:07:20]} 26. Kf1 {[%clk
00:33:21]} {[%emt 00:00:59]} Red8 {[%clk 00:10:31]} {[%emt 00:03:02]} 27. h3
{[%clk 00:28:48]} {[%emt 00:05:03]} Nd5 {[%clk 00:09:51]} {[%emt 00:01:09]} 28.
Bd2 {[%clk 00:28:56]} {[%emt 00:00:21]} Bd4 {[%clk 00:08:47]} {[%emt 00:01:36]}
29. a4 {[%clk 00:18:55]} {[%emt 00:10:30]} bxa3 {[%clk 00:07:51]} {[%emt
00:01:27]} 30. Nxa3 {[%clk 00:19:10]} {[%emt 00:00:14]} Bxd3+ {[%clk 00:08:01]}
{[%emt 00:00:21]} 31. cxd3 {[%clk 00:19:28]} {[%emt 00:00:11]} Rb8 {[%clk
00:06:08]} {[%emt 00:02:23]} 32. Rb1 {[%clk 00:19:03]} {[%emt 00:00:54]} Nb4
{[%clk 00:04:35]} {[%emt 00:02:04]} 33. Bxb4+ {[%clk 00:18:36]} {[%emt
00:00:57]} Rxb4 {[%clk 00:04:58]} {[%emt 00:00:07]} 34. Nc2 {[%clk 00:18:22]}
{[%emt 00:00:43]} Rb6 {[%clk 00:04:52]} {[%emt 00:00:36]} 35. Nxd4 {[%clk
00:18:32]} {[%emt 00:00:21]} Rxd4 {[%clk 00:05:13]} {[%emt 00:00:09]} 36. Ke2
{[%clk 00:14:34]} {[%emt 00:04:28]} Rdb4 {[%clk 00:05:15]} {[%emt 00:00:28]} 37.
Kd2 {[%clk 00:14:13]} {[%emt 00:00:50]} Rxb3 {[%clk 00:05:33]} {[%emt
00:00:14]} 38. Rxb3 {[%clk 00:14:22]} {[%emt 00:00:20]} Rxb3 {[%clk 00:05:58]}
{[%emt 00:00:05]} 39. Ra1 {[%clk 00:14:12]} {[%emt 00:00:40]} Rb6 {[%clk
00:06:11]} {[%emt 00:00:17]} 40. Ra2 {[%clk 00:13:10]} {[%emt 00:01:32]} Rg6
{[%clk 00:05:27]} {[%emt 00:01:14]} 41. g3 {[%clk 00:13:18]} {[%emt 00:00:22]}
Ke7 {[%clk 00:29:40]} {[%emt 00:06:17]} 42. d4 {[%clk 00:43:36]} {[%emt
00:00:12]} Rb6 {[%clk 00:27:50]} {[%emt 00:02:20]} 43. Kc3 {[%clk 00:43:35]}
{[%emt 00:00:31]} Kd6 {[%clk 00:27:34]} {[%emt 00:00:46]} 44. Kc4 {[%clk
00:43:39]} {[%emt 00:00:25]} Rc6+ {[%clk 00:26:53]} {[%emt 00:01:12]} 45. Kd3
{[%clk 00:43:45]} {[%emt 00:00:24]} Rb6 {[%clk 00:24:51]} {[%emt 00:02:32]} 46.
Kc4 {[%clk 00:42:29]} {[%emt 00:01:45]} Rc6+ {[%clk 00:25:04]} {[%emt
00:00:18]} 47. Kd3 {[%clk 00:42:49]} {[%emt 00:00:10]} 1/2-1/2